fUSD/lending_fUSD_20240319
["ID","MTS","AMOUNT","RATE_DAILY","PERIOD"]
[319592208,1710885046494,-2171.52,0.00030136,2]
[319592210,1710885046503,-4792.93,0.00030136,2]
[319592212,1710885046513,-1199.36,0.00030136,2]
[319592214,1710885046523,-500.0,0.00030136,2]
[319592216,1710885046533,-500.0,0.00030136,2]
[319592218,1710885046543,-2181.61,0.00030136,2]
[319592221,1710885046555,-500.0,0.00030136,2]
[319592222,1710885046564,-500.0,0.00030136,2]
[319592224,1710885046573,-500.0,0.00030136,2]
[319592226,1710885046583,-500.0,0.00030136,2]
[319592228,1710885046592,-501.95,0.00030136,2]
[319592230,1710885046602,-1621.75,0.00030136,2]
[319592233,1710885046612,-587.35684573,0.00030136,2]
[319592235,1710885046622,-855.86,0.00030136,2]
[319592236,1710885046632,-500.0,0.00030136,2]
[319592238,1710885046642,-589.7,0.00030136,2]
[319592240,1710885046651,-500.0,0.00030136,2]
[319592242,1710885046660,-3227.64,0.00030136,2]
[319592244,1710885046670,-500.0,0.00030136,2]
[319592246,1710885046679,-863.41,0.00030136,2]
[319592248,1710885046689,-2111.52,0.00030136,2]
[319592250,1710885046699,-2950.43,0.00030136,2]
[319592252,1710885046708,-500.0,0.00030136,2]
[319592254,1710885046717,-500.0,0.00030136,2]
[319592256,1710885046727,-500.0,0.00030136,2]
[319592258,1710885046737,-5122.72,0.00030136,2]
[319592260,1710885046747,-500.0,0.00030136,2]
[319592262,1710885046757,-824.14,0.00030136,2]
[319592264,1710885046767,-217.35409848,0.00030136,2]
[319592266,1710885046776,-10026.4,0.00030136,2]
[319592268,1710885046786,-500.0,0.00030136,2]
[319592270,1710885046795,-500.0,0.00030136,2]
[319592272,1710885046805,-2275.12,0.00030136,2]
[319592274,1710885046815,-500.0,0.00030136,2]
[319592276,1710885046824,-500.0,0.00030136,2]
[319592278,1710885046833,-1033.05,0.00030136,2]
[319592280,1710885046843,-500.0,0.00030136,2]
[319592282,1710885046853,-565.71,0.00030136,2]
[319592284,1710885046862,-500.0,0.00030136,2]
[319592286,1710885046872,-126732.2,0.00030136,2]
[319592288,1710885046882,-504.07,0.00030136,2]
[319592289,1710885046891,-500.0,0.00030136,2]
[319592290,1710885046900,-500.0,0.00030136,2]
[319592291,1710885046909,-500.0,0.00030136,2]
[319592292,1710885046919,-4852.56,0.00030136,2]
[319592293,1710885046928,-500.0,0.00030136,2]
[319592294,1710885046938,-500.0,0.00030136,2]
[319592295,1710885046946,-2937.74,0.00030136,2]
[319592296,1710885046955,-777.71,0.00030136,2]
[319592297,1710885046964,-1976.68,0.00030136,2]
[319592298,1710885046974,-1133.54,0.00030136,2]
[319592299,1710885046983,-500.0,0.00030136,2]
[319592300,1710885046991,-2119.46,0.00030136,2]
[319592301,1710885047002,-7711.4,0.00030136,2]
[319592303,1710885047012,-524.36,0.00030136,2]
[319592305,1710885047021,-500.0,0.00030136,2]
[319592307,1710885047030,-500.0,0.00030136,2]
[319592309,1710885047039,-14442.37,0.00030136,2]
[319592311,1710885047050,-7310.51,0.00030136,2]
[319592313,1710885047060,-500.0,0.00030136,2]
[319592315,1710885047069,-500.0,0.00030136,2]
[319592317,1710885047078,-500.0,0.00030136,2]
[319592319,1710885047090,-5376.56,0.00030136,2]
[319592321,1710885047099,-4230.03,0.00030136,2]
[319592323,1710885047108,-582.24,0.00030136,2]
[319592325,1710885047117,-751.89,0.00030136,2]
[319592327,1710885047127,-542.91,0.00030136,2]
[319592329,1710885047135,-500.0,0.00030136,2]
[319592331,1710885047145,-500.0,0.00030136,2]
[319592333,1710885047154,-500.0,0.00030136,2]
[319592335,1710885047164,-500.0,0.00030136,2]
[319592337,1710885047173,-1949.45,0.00030136,2]
[319592339,1710885047182,-5623.75,0.00030136,2]
[319592341,1710885047192,-636.0,0.00030136,2]
[319592343,1710885047201,-500.0,0.00030136,2]
[319592345,1710885047211,-500.0,0.00030136,2]
[319592347,1710885047220,-1033.59,0.00030136,2]
[319592349,1710885047230,-500.0,0.00030136,2]
[319592351,1710885047239,-583.76931826,0.00030136,2]
[319592353,1710885047248,-500.0,0.00030136,2]
[319592355,1710885047257,-5877.04,0.00030136,2]
[319592357,1710885047266,-825.5,0.00030136,2]
[319592359,1710885047275,-500.0,0.00030136,2]
[319592361,1710885047284,-521.04,0.00030136,2]
[319592363,1710885047294,-500.0,0.00030136,2]
[319592365,1710885047305,-503.31,0.00030136,2]
[319592367,1710885047314,-541.08686834,0.00030136,2]
[319592369,1710885047325,-3068.4,0.00030136,2]
[319592371,1710885047334,-2857.27,0.00030136,2]
[319592373,1710885047343,-631.3,0.00030136,2]
[319592375,1710885047353,-814.62,0.00030136,2]
[319592377,1710885047363,-500.0,0.00030136,2]
[319592379,1710885047373,-2550.99,0.00030136,2]
[319592381,1710885047383,-500.0,0.00030136,2]
[319592383,1710885047392,-500.0,0.00030136,2]
[319592385,1710885047402,-1149.73,0.00030136,2]
[319592387,1710885047411,-7487.75,0.00030136,2]
[319592389,1710885047421,-1638.18,0.00030136,2]
[319592391,1710885047430,-501.17758589,0.00030136,2]
[319592393,1710885047442,-7814.4,0.00030136,2]
[319592395,1710885047451,-500.0,0.00030136,2]
[319592397,1710885047462,-705.8,0.00030136,2]
[319592399,1710885047472,-529.96,0.00030136,2]
[319592401,1710885047481,-594.04,0.00030136,2]
[319592403,1710885047491,-500.0,0.00030136,2]
[319592405,1710885047500,-500.0,0.00030136,2]
[319592406,1710885047509,-500.0,0.00030136,2]
[319592408,1710885047519,-500.0,0.00030136,2]
[319592410,1710885047529,-3016.27,0.00030136,2]
[319592412,1710885047538,-500.0,0.00030136,2]
[319592414,1710885047548,-500.0,0.00030136,2]
[319592416,1710885047558,-500.0,0.00030136,2]
[319592418,1710885047567,-38480.53,0.00030136,2]
[319592420,1710885047576,-2988.01,0.00030136,2]
[319592422,1710885047585,-500.0,0.00030136,2]
[319592424,1710885047594,-968.19,0.00030136,2]
[319592426,1710885047603,-767.81,0.00030136,2]
[319592428,1710885047612,-3358.0,0.00030136,2]
[319592430,1710885047625,-500.0,0.00030136,2]
[319592432,1710885047636,-2995.65,0.00030136,2]
[319592434,1710885047645,-500.0,0.00030136,2]
[319592436,1710885047654,-500.0,0.00030136,2]
[319592437,1710885047663,-2879.31,0.00030136,2]
[319592438,1710885047673,-500.0,0.00030136,2]
[319592439,1710885047682,-3475.26,0.00030136,2]
[319592440,1710885047692,-817.64,0.00030136,2]
[319592441,1710885047703,-500.0,0.00030136,2]
[319592442,1710885047713,-626.59,0.00030136,2]
[319592443,1710885047722,-1532.23,0.00030136,2]
[319592444,1710885047732,-507.04689945,0.00030136,2]
[319592445,1710885047741,-166.24638253,0.00030136,2]
[319592446,1710885047751,-500.0,0.00030136,2]
[319592447,1710885047761,-1675.59,0.00030136,2]
[319592448,1710885047770,-1175.56,0.00030136,2]
[319592449,1710885047779,-1109.08,0.00030136,2]
[319592450,1710885047792,-1104.88,0.00030136,2]
[319592451,1710885047803,-1008.18,0.00030136,2]
[319592452,1710885047812,-500.0,0.00030136,2]
[319592453,1710885047821,-2383.57,0.00030136,2]
[319592454,1710885047830,-507.04188784,0.00030136,2]
[319592455,1710885047839,-6551.95,0.00030136,2]
[319592456,1710885047848,-20378.39,0.00030136,2]
[319592457,1710885047858,-501.245639,0.00030136,2]
[319592458,1710885047867,-3428.01,0.00030136,2]
[319592459,1710885047876,-346.14626443,0.00030136,2]
[319592460,1710885047885,-500.0,0.00030136,2]
[319592461,1710885047894,-500.0,0.00030136,2]
[319592462,1710885047903,-500.77671576,0.00030136,2]
[319592463,1710885047913,-500.0,0.00030136,2]
[319592464,1710885047922,-468.90720499,0.00030136,2]
[319592465,1710885047931,-724.41,0.00030136,2]
[319592466,1710885047940,-2691.76,0.00030136,2]
[319592467,1710885047950,-4023.07,0.00030136,2]
[319592468,1710885047959,-500.0,0.00030136,2]
[319592469,1710885047968,-518.98,0.00030136,2]
[319592470,1710885047978,-532.04,0.00030136,2]
[319592471,1710885047987,-3655.41,0.00030136,2]
[319592472,1710885047996,-500.0,0.00030136,2]
[319592473,1710885048005,-3100.4,0.00030136,2]
[319592474,1710885048015,-646.76835103,0.00030136,2]
[319592475,1710885048024,-532.61,0.00030136,2]
[319592476,1710885048034,-500.0,0.00030136,2]
[319592477,1710885048043,-5255.9,0.00030136,2]
[319592478,1710885048055,-1495.58,0.00030136,2]
[319592479,1710885048064,-646.23,0.00030136,2]
[319592480,1710885048073,-500.0,0.00030136,2]
[319592481,1710885048083,-500.0,0.00030136,2]
[319592482,1710885048093,-500.0,0.00030136,2]
[319592483,1710885048102,-856.3,0.00030136,2]
[319592484,1710885048112,-1919.76,0.00030136,2]
[319592485,1710885048121,-2848.19,0.00030136,2]
[319592486,1710885048130,-500.0,0.00030136,2]
[319592487,1710885048139,-514.35,0.00030136,2]
[319592488,1710885048148,-224.92971011,0.00030136,2]
[319592489,1710885048157,-84885.72,0.00030136,2]
[319592490,1710885048167,-917.99,0.00030136,2]
[319592491,1710885048176,-7528.25,0.00030136,2]
[319592492,1710885048185,-2075.6,0.00030136,2]
[319592493,1710885048194,-556.06,0.00030136,2]
[319592494,1710885048203,-4053.66,0.00030136,2]
[319592495,1710885048213,-500.0,0.00030136,2]
[319592496,1710885048222,-950.92,0.00030136,2]
[319592497,1710885048232,-1498.56,0.00030136,2]
[319592498,1710885048241,-500.0,0.00030136,2]
[319592499,1710885048250,-6114.82,0.00030136,2]
[319592500,1710885048260,-1068.02,0.00030136,2]
[319592501,1710885048269,-1140.75,0.00030136,2]
[319592502,1710885048279,-1363.9,0.00030136,2]
[319592503,1710885048288,-500.0,0.00030136,2]
[319592504,1710885048297,-500.0,0.00030136,2]
[319592505,1710885048309,-680.37,0.00030136,2]
[319592506,1710885048318,-6608.67,0.00030136,2]
[319592507,1710885048327,-500.0,0.00030136,2]
[319592508,1710885048337,-500.0,0.00030136,2]
[319592509,1710885048346,-500.0,0.00030136,2]
[319592510,1710885048355,-7331.78,0.00030136,2]
[319592511,1710885048365,-535.13,0.00030136,2]
[319592512,1710885048377,-5255.76,0.00030136,2]
[319592513,1710885048387,-501.67,0.00030136,2]
[319592514,1710885048396,-1065.89,0.00030136,2]
[319592515,1710885048406,-500.0,0.00030136,2]
[319592516,1710885048415,-500.0,0.00030136,2]
[319592517,1710885048425,-2244.41,0.00030136,2]
[319592518,1710885048440,-192.74378608,0.00030136,2]
[319592519,1710885048450,-500.0,0.00030136,2]
[319592520,1710885048459,-1134.2,0.00030136,2]
[319592521,1710885048468,-12679.11,0.00030136,2]
[319592522,1710885048477,-500.0,0.00030136,2]
[319592523,1710885048488,-500.0,0.00030136,2]
[319592524,1710885048497,-952.29,0.00030136,2]
[319592525,1710885048507,-5689.03,0.00030136,2]
[319592526,1710885048517,-500.0,0.00030136,2]
[319592527,1710885048527,-564.37892992,0.00030136,2]
[319592528,1710885048537,-16057.66,0.00030136,2]
[319592529,1710885048548,-500.0,0.00030136,2]
[319592530,1710885048558,-661.71,0.00030136,2]
[319592531,1710885048567,-6799.03,0.00030136,2]
[319592532,1710885048577,-4275.90298489,0.00030136,2]
[319592533,1710885050390,-5042.47701511,0.00030136,2]
[319592534,1710885050401,-4026.73,0.00030136,2]
[319592535,1710885050413,-3035.5,0.00030136,2]
[319592536,1710885050424,-3750.07,0.00030136,2]
[319592537,1710885050436,-935.16,0.00030136,2]
[319592538,1710885050447,-6185.77,0.00030136,2]
[319592539,1710885050457,-1750.15,0.00030136,2]
[319592540,1710885050469,-500.0,0.00030136,2]
[319592541,1710885050481,-507.49,0.00030136,2]
[319592542,1710885050492,-500.0,0.00030136,2]
[319592543,1710885050503,-2644.39,0.00030136,2]
[319592544,1710885050513,-500.0,0.00030136,2]
[319592545,1710885050524,-500.0,0.00030136,2]
[319592546,1710885050535,-21984.05,0.00030136,2]
[319592547,1710885050546,-500.0,0.00030136,2]
[319592548,1710885050560,-1656.75,0.00030136,2]
[319592549,1710885050571,-682.19,0.00030136,2]
[319592550,1710885050582,-3232.39,0.00030136,2]
[319592551,1710885050592,-500.0,0.00030136,2]
[319592552,1710885050604,-4012.77,0.00030136,2]
[319592553,1710885050614,-5906.29,0.00030136,2]
[319592554,1710885050625,-2450.74,0.00030136,2]
[319592555,1710885050636,-500.0,0.00030136,2]
[319592556,1710885050647,-500.0,0.00030136,2]
[319592557,1710885050658,-500.0,0.00030136,2]
[319592558,1710885050668,-500.0,0.00030136,2]
[319592559,1710885050680,-500.0,0.00030136,2]
[319592560,1710885050690,-500.0,0.00030136,2]
[319592561,1710885050701,-500.0,0.00030136,2]
[319592562,1710885050712,-500.0,0.00030136,2]
[319592563,1710885050723,-500.0,0.00030136,2]
[319592564,1710885050734,-500.0,0.00030136,2]
[319592565,1710885050745,-1898.34,0.00030136,2]
[319592566,1710885050757,-6356.12,0.00030136,2]
[319592567,1710885050768,-860.9,0.00030136,2]
[319592568,1710885050779,-500.0,0.00030136,2]
[319592569,1710885050790,-988.62,0.00030136,2]
[319592570,1710885050802,-741.49,0.00030136,2]
[319592571,1710885050813,-500.0,0.00030136,2]
[319592572,1710885050824,-502.93,0.00030136,2]
[319592573,1710885050835,-10393.93,0.00030136,2]
[319592574,1710885050846,-3281.78,0.00030136,2]
[319592575,1710885050857,-887.69,0.00030136,2]
[319592576,1710885050868,-500.0,0.00030136,2]
[319592577,1710885050879,-2054.31,0.00030136,2]
[319592578,1710885050890,-500.0,0.00030136,2]
[319592579,1710885050901,-1073.2,0.00030136,2]
[319592580,1710885050912,-500.0,0.00030136,2]
[319592581,1710885050923,-257.03824044,0.00030136,2]
[319592582,1710885050934,-500.0,0.00030136,2]
[319592583,1710885050944,-500.0,0.00030136,2]
[319592584,1710885050955,-500.0,0.00030136,2]
[319592585,1710885050965,-5676.82,0.00030136,2]
[319592586,1710885050975,-2336.1,0.00030136,2]
[319592587,1710885050986,-784.81,0.00030136,2]
[319592588,1710885050996,-500.0,0.00030136,2]
[319592589,1710885051007,-2928.09,0.00030136,2]
[319592590,1710885051018,-958.78,0.00030136,2]
[319592591,1710885051029,-5305.03,0.00030136,2]
[319592592,1710885051039,-12462.52,0.00030136,2]
[319592593,1710885051050,-742.85,0.00030136,2]
[319592594,1710885051061,-6273.21,0.00030136,2]
[319592595,1710885051071,-500.0,0.00030136,2]
[319592596,1710885051082,-3248.64,0.00030136,2]
[319592597,1710885051092,-500.0,0.00030136,2]
[319592598,1710885051103,-7424.85,0.00030136,2]
[319592599,1710885051114,-512.06925129,0.00030136,2]
[319592600,1710885051125,-9028.78,0.00030136,2]
[319592601,1710885051135,-500.0,0.00030136,2]
[319592602,1710885051146,-500.0,0.00030136,2]
[319592603,1710885051156,-8000.71,0.00030136,2]
[319592604,1710885051167,-500.0,0.00030136,2]
[319592605,1710885051178,-7152.27,0.00030136,2]
[319592606,1710885051188,-500.0,0.00030136,2]
[319592607,1710885051199,-603.25,0.00030136,2]
[319592608,1710885051210,-920.58,0.00030136,2]
[319592609,1710885051221,-862.02,0.00030136,2]
[319592610,1710885051231,-2003.98572173,0.00030136,2]
[319592611,1710885051241,-11402.88,0.00030136,2]
[319592612,1710885051252,-5180.59,0.00030136,2]
[319592613,1710885051262,-1058.28,0.00030136,2]
[319592614,1710885051273,-500.0,0.00030136,2]
[319592615,1710885051284,-6676.62,0.00030136,2]
[319592616,1710885051294,-50748.97,0.00030136,2]
[319592617,1710885051306,-12563.76,0.00030136,2]
[319592618,1710885051316,-500.0,0.00030136,2]
[319592619,1710885051327,-4392.06,0.00030136,2]
[319592620,1710885051337,-500.0,0.00030136,2]
[319592621,1710885051348,-947.45,0.00030136,2]
[319592622,1710885051359,-994.47,0.00030136,2]
[319592623,1710885051370,-6289.47,0.00030136,2]
[319592624,1710885051381,-1127.56,0.00030136,2]
[319592625,1710885051392,-500.0,0.00030136,2]
[319592626,1710885051402,-500.0,0.00030136,2]
[319592627,1710885051413,-1563.9,0.00030136,2]
[319592628,1710885051425,-1554.32,0.00030136,2]
[319592629,1710885051437,-2538.59,0.00030136,2]
[319592630,1710885051448,-9279.39,0.00030136,2]
[319592631,1710885051460,-2973.35,0.00030136,2]
[319592632,1710885051470,-476.59427918,0.00030136,2]
[319592633,1710885051482,-500.0,0.00030136,2]
[319592634,1710885051493,-1071.73,0.00030136,2]
[319592635,1710885051505,-1557.91,0.00030136,2]
[319592636,1710885051516,-500.0,0.00030136,2]
[319592637,1710885051526,-500.0,0.00030136,2]
[319592638,1710885051539,-500.0,0.00030136,2]
[319592639,1710885051551,-5460.3,0.00030136,2]
[319592640,1710885051562,-921.84,0.00030136,2]
[319592641,1710885051573,-1497.67,0.00030136,2]
[319592642,1710885051584,-549.68,0.00030136,2]
[319592643,1710885051596,-866.95,0.00030136,2]
[319592644,1710885051607,-500.0,0.00030136,2]
[319592645,1710885051618,-500.0,0.00030136,2]
[319592646,1710885051629,-23885.26,0.00030136,2]
[319592647,1710885051641,-321.31349081,0.00030136,2]
[319592648,1710885051651,-6038.59,0.00030136,2]
[319592649,1710885051663,-34338.3,0.00030136,2]
[319592650,1710885051674,-2241.19,0.00030136,2]
[319592651,1710885051685,-500.0,0.00030136,2]
[319592652,1710885051696,-870.15,0.00030136,2]
[319592653,1710885051707,-1003.35,0.00030136,2]
[319592654,1710885051718,-500.0,0.00030136,2]
[319592655,1710885051729,-5378.59,0.00030136,2]
[319592656,1710885051740,-5507.6,0.00030136,2]
[319592657,1710885051751,-615.59,0.00030136,2]
[319592658,1710885051762,-500.0,0.00030136,2]
[319592659,1710885051774,-681.39,0.00030136,2]
[319592660,1710885051785,-500.0,0.00030136,2]
[319592661,1710885051796,-500.0,0.00030136,2]
[319592662,1710885051807,-3623.08,0.00030136,2]
[319592663,1710885051818,-500.0,0.00030136,2]
[319592664,1710885051829,-659.74,0.00030136,2]
[319592665,1710885051840,-1648.34,0.00030136,2]
[319592666,1710885051851,-500.0,0.00030136,2]
[319592667,1710885051862,-500.0,0.00030136,2]
[319592668,1710885051873,-7204.29,0.00030136,2]
[319592669,1710885051885,-500.0,0.00030136,2]
[319592670,1710885051895,-5688.06,0.00030136,2]
[319592671,1710885051906,-976.18,0.00030136,2]
[319592672,1710885051919,-500.0,0.00030136,2]
[319592673,1710885051929,-1912.73,0.00030136,2]
[319592674,1710885051941,-3082.4,0.00030136,2]
[319592675,1710885051952,-2522.27,0.00030136,2]
[319592676,1710885051964,-6424.1,0.00030136,2]
[319592677,1710885051975,-1570.96,0.00030136,2]
[319592678,1710885051986,-1409.47,0.00030136,2]
[319592679,1710885051997,-500.0,0.00030136,2]
[319592680,1710885052009,-500.0,0.00030136,2]
[319592681,1710885052019,-2703.38,0.00030136,2]
[319592682,1710885052031,-989.66,0.00030136,2]
[319592683,1710885052042,-527.32443845,0.00030136,2]
[319592684,1710885052053,-10351.23,0.00030136,2]
[319592685,1710885052065,-500.0,0.00030136,2]
[319592686,1710885052075,-500.0,0.00030136,2]
[319592687,1710885052087,-723.42,0.00030136,2]
[319592688,1710885052098,-500.0,0.00030136,2]
[319592689,1710885052109,-3159.85,0.00030136,2]
[319592690,1710885052120,-19207.21,0.00030136,2]
[319592691,1710885052132,-3910.17,0.00030136,2]
[319592692,1710885052143,-1575.99,0.00030136,2]
[319592693,1710885052154,-2518.49,0.00030136,2]
[319592694,1710885052165,-500.0,0.00030136,2]
[319592695,1710885052177,-500.0,0.00030136,2]
[319592696,1710885052188,-500.0,0.00030136,2]
[319592697,1710885052200,-602.98,0.00030136,2]
[319592698,1710885052212,-2902.62,0.00030136,2]
[319592699,1710885052223,-1081.46,0.00030136,2]
[319592700,1710885052235,-537.82436343,0.00030136,2]
[319592701,1710885052247,-500.0,0.00030136,2]
[319592702,1710885052259,-996.99,0.00030136,2]
[319592703,1710885052271,-500.0,0.00030136,2]
[319592704,1710885052282,-11316.17,0.00030136,2]
[319592705,1710885052293,-500.0,0.00030136,2]
[319592706,1710885052305,-722.94,0.00030136,2]
[319592707,1710885052317,-21059.27,0.00030136,2]
[319592708,1710885052328,-1144.28,0.00030136,2]
[319592709,1710885052339,-500.0,0.00030136,2]
[319592710,1710885052350,-3248.34,0.00030136,2]
[319592711,1710885052362,-592.77,0.00030136,2]
[319592712,1710885052374,-611.45,0.00030136,2]
[319592713,1710885052385,-500.0,0.00030136,2]
[319592714,1710885052397,-500.0,0.00030136,2]
[319592715,1710885052409,-1214.02,0.00030136,2]
[319592716,1710885052420,-5044.94,0.00030136,2]
[319592717,1710885052432,-376.1862669,0.00030136,2]
[319592718,1710885052450,-500.0,0.00030136,2]
[319592719,1710885052461,-500.0,0.00030136,2]
[319592720,1710885052472,-500.0,0.00030136,2]
[319592721,1710885052483,-6225.21,0.00030136,2]
[319592722,1710885052494,-856.7,0.00030136,2]
[319592723,1710885052504,-608.72,0.00030136,2]
[319592724,1710885052515,-1511.11,0.00030136,2]
[319592725,1710885052528,-500.0,0.00030136,2]
[319592726,1710885052538,-500.0,0.00030136,2]
[319592727,1710885052548,-1279.36,0.00030136,2]
[319592728,1710885052560,-500.0,0.00030136,2]
[319592729,1710885052570,-500.0,0.00030136,2]
[319592730,1710885052581,-500.0,0.00030136,2]
[319592731,1710885052593,-8737.55,0.00030136,2]
[319592732,1710885052603,-11752.03,0.00030136,2]
[319592733,1710885052614,-4482.5,0.00030136,2]
[319592734,1710885052625,-500.0,0.00030136,2]
[319592735,1710885052637,-1788.46,0.00030136,2]
[319592736,1710885052647,-500.0,0.00030136,2]
[319592737,1710885052658,-5316.22,0.00030136,2]
[319592738,1710885052669,-500.0,0.00030136,2]
[319592739,1710885052680,-1321.67,0.00030136,2]
[319592740,1710885052692,-22991.35,0.00030136,2]
[319592741,1710885052702,-1177.76,0.00030136,2]
[319592742,1710885052713,-518.08,0.00030136,2]
[319592743,1710885052724,-500.0,0.00030136,2]
[319592744,1710885052735,-505.75,0.00030136,2]
[319592745,1710885052746,-500.0,0.00030136,2]
[319592746,1710885052758,-2886.03,0.00030136,2]
[319592747,1710885052769,-1429.54,0.00030136,2]
[319592748,1710885052780,-500.0,0.00030136,2]
[319592749,1710885052791,-3473.42,0.00030136,2]
[319592750,1710885052802,-20562.17,0.00030136,2]
[319592751,1710885052814,-4026.93,0.00030136,2]
[319592752,1710885052825,-500.0,0.00030136,2]
[319592753,1710885052836,-805.12,0.00030136,2]
[319592754,1710885052847,-981.11,0.00030136,2]
[319592755,1710885052858,-587.58000701,0.00030136,2]
[319592756,1710885052869,-500.0,0.00030136,2]
[319592757,1710885052881,-877.4,0.00030136,2]
[319592758,1710885052892,-500.0,0.00030136,2]
[319592759,1710885052903,-1121.88,0.00030136,2]
[319592760,1710885052914,-836.09,0.00030136,2]
[319592761,1710885052925,-500.0,0.00030136,2]
[319592762,1710885052937,-500.0,0.00030136,2]
[319592763,1710885052949,-12965.17,0.00030136,2]
[319592764,1710885052960,-8047.18,0.00030136,2]
[319592765,1710885052971,-4640.74,0.00030136,2]
[319592766,1710885052984,-6661.58,0.00030136,2]
[319592767,1710885052996,-500.0,0.00030136,2]
[319592768,1710885053006,-500.0,0.00030136,2]
[319592769,1710885053015,-720.32,0.00030136,2]
[319592770,1710885053025,-500.0,0.00030136,2]
[319592771,1710885053035,-3306.12,0.00030136,2]
[319592772,1710885053044,-1406.25,0.00030136,2]
[319592773,1710885053055,-603.58,0.00030136,2]
[319592774,1710885053694,-500.0,0.00030136,2]
[319592775,1710885053718,-500.0,0.00030136,2]
[319592776,1710885053741,-630.80620146,0.00030136,2]
[319592777,1710885053758,-1438.11,0.00030136,2]
[319592778,1710885053768,-500.0,0.00030136,2]
[319592779,1710885053777,-6333.98,0.00030136,2]
[319592780,1710885053787,-26854.72,0.00030136,2]
[319592781,1710885053796,-2692.37,0.00030136,2]
[319592782,1710885053807,-614.48,0.00030136,2]
[319592783,1710885053816,-1298.71,0.00030136,2]
[319592784,1710885053826,-2847.31,0.00030136,2]
[319592785,1710885053835,-1953.31,0.00030136,2]
[319592786,1710885053844,-500.0,0.00030136,2]
[319592787,1710885053854,-500.0,0.00030136,2]
[319592788,1710885053863,-972.96,0.00030136,2]
[319592789,1710885053873,-521.8,0.00030136,2]
[319592790,1710885053883,-500.0,0.00030136,2]
[319592791,1710885053892,-599.79,0.00030136,2]
[319592792,1710885053902,-1902.54,0.00030136,2]
[319592793,1710885053911,-673.97,0.00030136,2]
[319592794,1710885053920,-1686.82,0.00030136,2]
[319592795,1710885053930,-649.62,0.00030136,2]
[319592796,1710885053939,-26670.31,0.00030136,2]
[319592797,1710885053948,-500.0,0.00030136,2]
[319592798,1710885053958,-5843.77,0.00030136,2]
[319592799,1710885053967,-1828.95,0.00030136,2]
[319592800,1710885053976,-1199.84,0.00030136,2]
[319592801,1710885053986,-1109.32,0.00030136,2]
[319592802,1710885053995,-691.9,0.00030136,2]
[319592803,1710885054004,-1216.0,0.00030136,2]
[319592804,1710885054013,-500.0,0.00030136,2]
[319592805,1710885054023,-500.0,0.00030136,2]
[319592806,1710885054032,-500.0,0.00030136,2]
[319592807,1710885054042,-418.93760767,0.00030308,2]
[319592808,1710885054052,-3157.06312314,0.0003031,2]
[319592809,1710885054061,-1291.99306394,0.0003031,2]
[319592810,1710885054070,-151.032006,0.00030403,3]
[319592811,1710885054080,-151.032006,0.00030403,4]
[319592812,1710885054089,-151.032006,0.00030404,4]
[319592813,1710885054098,-151.032006,0.00030404,3]
[319592814,1710885054107,-151.032006,0.00030405,3]